[Event "Titled Tuesday Blitz May 24 Early 2022"]
[White "De Arruda, Leandro Formes"]
[Black "Namitbir Singh Walia"]
[WhiteFideId "22722009"]
[BlackFideId "35071068"]
[WhiteElo "1852"]
[BlackElo "1565"]
[Result "0-1"]
[Round "08"]
[TimeControl "180+1"]
[Date "2022.05.25"]
[WhiteClock "0:00:02"]
[BlackClock "0:01:25"]

1. d4 {[%clk 0:01:21]}  Nf6 {[%clk 0:02:59]} 2. e3 {[%clk 0:01:22]}  d5 {[%clk 0:02:59]} 3. Nf3 {[%clk 0:01:22]}  Bf5 {[%clk 0:02:59]} 4. Bd3 {[%clk 0:01:23]}  e6 {[%clk 0:02:59]} 5. Ne5 {[%clk 0:01:23]}  Nbd7 {[%clk 0:02:57]} 6. O-O {[%clk 0:01:23]}  c5 {[%clk 0:02:53]} 7. c3 {[%clk 0:01:21]}  c4 {[%clk 0:02:49]} 8. Bxf5 {[%clk 0:01:20]}  exf5 {[%clk 0:02:50]} 9. Nxd7 {[%clk 0:01:16]}  Qxd7 {[%clk 0:02:50]} 10. b3 {[%clk 0:01:15]}  Qc7 {[%clk 0:02:24]} 11. Qe2 {[%clk 0:01:00]}  cxb3 {[%clk 0:02:23]} 12. axb3 {[%clk 0:01:01]}  Bd6 {[%clk 0:02:23]} 13. h3 {[%clk 0:00:59]}  O-O {[%clk 0:02:22]} 14. Qd3 {[%clk 0:00:56]}  Ne4 {[%clk 0:02:17]} 15. Bb2 {[%clk 0:00:26]}  Rac8 {[%clk 0:02:11]} 16. Rxa7 {[%clk 0:00:10]}  Qb6 {[%clk 0:02:11]} 17. Ra3 {[%clk 0:00:10]}  Bxa3 {[%clk 0:02:10]} 18. Bxa3 {[%clk 0:00:11]}  Rfe8 {[%clk 0:02:07]} 19. f3 {[%clk 0:00:10]}  Ng3 {[%clk 0:02:04]} 20. Re1 {[%clk 0:00:10]}  Qxb3 {[%clk 0:02:04]} 21. Bb4 {[%clk 0:00:09]}  Qc4 {[%clk 0:01:59]} 22. Qd1 {[%clk 0:00:08]}  Ra8 {[%clk 0:01:53]} 23. Na3 {[%clk 0:00:07]}  Qa2 {[%clk 0:01:49]} 24. Nc2 {[%clk 0:00:05]}  Rec8 {[%clk 0:01:47]} 25. e4 {[%clk 0:00:04]}  fxe4 {[%clk 0:01:47]} 26. fxe4 {[%clk 0:00:04]}  Nxe4 {[%clk 0:01:47]} 27. Ne3 {[%clk 0:00:03]}  Nxc3 {[%clk 0:01:43]} 28. Bxc3 {[%clk 0:00:02]}  Rxc3 {[%clk 0:01:44]} 29. Qf3 {[%clk 0:00:02]}  Qd2 {[%clk 0:01:41]} 30. Re2 {[%clk 0:00:01]}  Qc1+ {[%clk 0:01:39]} 31. Kh2 {[%clk 0:00:02]}  h6 {[%clk 0:01:27]} 32. Rf2 {[%clk 0:00:02]}  Qxe3 {[%clk 0:01:24]} 33. Qxf7+ {[%clk 0:00:02]}  Kh8 {[%clk 0:01:25]} 0-1


[Site "https://www.chess.com"]

[Event "Titled Tuesday Blitz May 24 Early 2022"]
[White "Estrada Nieto, Julian"]
[Black "Tasev, Dejan"]
[WhiteFideId "5101018"]
[BlackFideId "936618"]
[WhiteElo "2252"]
[BlackElo "2253"]
[Result "1-0"]
[Round "08"]
[TimeControl "180+1"]
[Date "2022.05.25"]
[WhiteClock "0:00:19"]
[BlackClock "0:00:35"]

1. e4 {[%clk 0:03:00]}  e5 {[%clk 0:02:59]} 2. Nf3 {[%clk 0:03:00]}  Nc6 {[%clk 0:02:58]} 3. Bb5 {[%clk 0:03:00]}  a6 {[%clk 0:02:58]} 4. Ba4 {[%clk 0:03:00]}  Nf6 {[%clk 0:02:58]} 5. O-O {[%clk 0:03:01]}  b5 {[%clk 0:02:56]} 6. Bb3 {[%clk 0:03:00]}  Be7 {[%clk 0:02:56]} 7. Re1 {[%clk 0:03:00]}  O-O {[%clk 0:02:56]} 8. a4 {[%clk 0:03:00]}  Bb7 {[%clk 0:02:52]} 9. Nc3 {[%clk 0:02:44]}  b4 {[%clk 0:02:50]} 10. Nd5 {[%clk 0:02:44]}  d6 {[%clk 0:02:45]} 11. d3 {[%clk 0:02:39]}  a5 {[%clk 0:02:35]} 12. h3 {[%clk 0:02:23]}  Nxd5 {[%clk 0:02:29]} 13. Bxd5 {[%clk 0:02:22]}  Qd7 {[%clk 0:02:29]} 14. Be3 {[%clk 0:02:16]}  Nd8 {[%clk 0:02:28]} 15. Bxb7 {[%clk 0:02:15]}  Nxb7 {[%clk 0:02:29]} 16. d4 {[%clk 0:02:15]}  exd4 {[%clk 0:02:26]} 17. Bxd4 {[%clk 0:01:55]}  Rfe8 {[%clk 0:02:19]} 18. Qd2 {[%clk 0:01:53]}  Rad8 {[%clk 0:02:13]} 19. b3 {[%clk 0:01:51]}  Bf8 {[%clk 0:02:06]} 20. Rad1 {[%clk 0:01:49]}  Qc6 {[%clk 0:02:04]} 21. Bb2 {[%clk 0:01:32]}  Rxe4 {[%clk 0:01:53]} 22. Nd4 {[%clk 0:01:31]}  Rxe1+ {[%clk 0:01:51]} 23. Rxe1 {[%clk 0:01:31]}  Qd7 {[%clk 0:01:50]} 24. Qg5 {[%clk 0:01:27]}  Nc5 {[%clk 0:01:23]} 25. Nf5 {[%clk 0:01:19]}  Ne6 {[%clk 0:01:18]} 26. Rxe6 {[%clk 0:00:57]}  fxe6 {[%clk 0:01:04]} 27. Nh6+ {[%clk 0:00:57]}  Kh8 {[%clk 0:01:03]} 28. Qxd8 {[%clk 0:00:56]}  Qxd8 {[%clk 0:00:42]} 29. Nf7+ {[%clk 0:00:55]}  Kg8 {[%clk 0:00:42]} 30. Nxd8 {[%clk 0:00:56]}  e5 {[%clk 0:00:41]} 31. Ne6 {[%clk 0:00:52]}  c6 {[%clk 0:00:39]} 32. Nxf8 {[%clk 0:00:49]}  Kxf8 {[%clk 0:00:39]} 33. c4 {[%clk 0:00:39]}  c5 {[%clk 0:00:35]} 34. Kf1 {[%clk 0:00:38]}  Kf7 {[%clk 0:00:36]} 35. Ke2 {[%clk 0:00:39]}  Ke6 {[%clk 0:00:36]} 36. Kd3 {[%clk 0:00:34]}  d5 {[%clk 0:00:37]} 37. cxd5+ {[%clk 0:00:34]}  Kxd5 {[%clk 0:00:37]} 38. f3 {[%clk 0:00:31]}  g6 {[%clk 0:00:37]} 39. g4 {[%clk 0:00:27]}  c4+ {[%clk 0:00:34]} 40. bxc4+ {[%clk 0:00:26]}  Kc5 {[%clk 0:00:35]} 41. Bxe5 {[%clk 0:00:25]}  b3 {[%clk 0:00:35]} 42. Kc3 {[%clk 0:00:22]}  b2 {[%clk 0:00:36]} 43. Kxb2 {[%clk 0:00:22]}  Kxc4 {[%clk 0:00:36]} 44. Bc3 {[%clk 0:00:21]}  Kd3 {[%clk 0:00:34]} 45. Bxa5 {[%clk 0:00:20]}  Ke2 {[%clk 0:00:35]} 46. f4 {[%clk 0:00:19]}  Kf3 {[%clk 0:00:35]} 47. f5 {[%clk 0:00:19]}  gxf5 {[%clk 0:00:35]} 48. gxf5 {[%clk 0:00:19]} 1-0


[Site "https://www.chess.com"]

[Event "Titled Tuesday Blitz May 24 Early 2022"]
[White "Fernandez Hernandez, Gerardo"]
[Black "Dahlgren, James Allen"]
[WhiteFideId "2207400"]
[BlackFideId "22256873"]
[WhiteElo "2222"]
[BlackElo "2062"]
[Result "0-1"]
[Round "08"]
[TimeControl "180+1"]
[Date "2022.05.25"]
[WhiteClock "0:00:01"]
[BlackClock "0:01:21"]

1. e4 {[%clk 0:03:00]}  e6 {[%clk 0:02:59]} 2. d4 {[%clk 0:02:53]}  c5 {[%clk 0:03:00]} 3. c3 {[%clk 0:02:45]}  d5 {[%clk 0:02:59]} 4. e5 {[%clk 0:02:44]}  Bd7 {[%clk 0:02:58]} 5. Nf3 {[%clk 0:02:44]}  Qb6 {[%clk 0:02:56]} 6. a4 {[%clk 0:02:37]}  Nh6 {[%clk 0:02:49]} 7. Bd3 {[%clk 0:02:27]}  Nc6 {[%clk 0:02:41]} 8. O-O {[%clk 0:02:23]}  cxd4 {[%clk 0:02:40]} 9. Bf4 {[%clk 0:02:10]}  Qxb2 {[%clk 0:02:37]} 10. Na3 {[%clk 0:01:49]}  Bxa3 {[%clk 0:02:32]} 11. cxd4 {[%clk 0:01:28]}  Be7 {[%clk 0:02:13]} 12. Rb1 {[%clk 0:01:20]}  Qc3 {[%clk 0:02:09]} 13. Rb3 {[%clk 0:01:03]}  Qa5 {[%clk 0:02:03]} 14. Rxb7 {[%clk 0:01:04]}  Nf5 {[%clk 0:01:54]} 15. Bb5 {[%clk 0:00:41]}  a6 {[%clk 0:01:45]} 16. Bd2 {[%clk 0:00:14]}  Bb4 {[%clk 0:01:34]} 17. Bxb4 {[%clk 0:00:09]}  Qd8 {[%clk 0:01:23]} 18. Bxc6 {[%clk 0:00:05]}  Bxc6 {[%clk 0:01:24]} 19. Re7+ {[%clk 0:00:02]}  Nxe7 {[%clk 0:01:24]} 20. Ba3 {[%clk 0:00:02]}  Nf5 {[%clk 0:01:24]} 21. Qb3 {[%clk 0:00:01]}  Ne7 {[%clk 0:01:23]} 22. Qc3 {[%clk 0:00:01]}  Rc8 {[%clk 0:01:21]} 0-1


[Site "https://www.chess.com"]

[Event "Titled Tuesday Blitz May 24 Early 2022"]
[White "Garriga Cazorla, Pere"]
[Black "Al-Tarboush, Ward"]
[WhiteFideId "32011601"]
[BlackFideId "7601450"]
[WhiteElo "2433"]
[BlackElo "2294"]
[Result "1-0"]
[Round "08"]
[TimeControl "180+1"]
[Date "2022.05.24"]
[WhiteClock "0:00:27"]
[BlackClock "0:00:04"]

1. d4 {[%clk 0:03:00]}  d5 {[%clk 0:02:57]} 2. c4 {[%clk 0:02:56]}  c6 {[%clk 0:02:57]} 3. Nf3 {[%clk 0:02:56]}  Nf6 {[%clk 0:02:57]} 4. Nc3 {[%clk 0:02:57]}  dxc4 {[%clk 0:02:57]} 5. a4 {[%clk 0:02:58]}  Bf5 {[%clk 0:02:57]} 6. e3 {[%clk 0:02:57]}  e6 {[%clk 0:02:57]} 7. Bxc4 {[%clk 0:02:58]}  Bb4 {[%clk 0:02:57]} 8. O-O {[%clk 0:02:59]}  Nbd7 {[%clk 0:02:58]} 9. Nh4 {[%clk 0:02:59]}  O-O {[%clk 0:02:56]} 10. h3 {[%clk 0:02:59]}  Nb6 {[%clk 0:02:50]} 11. Bb3 {[%clk 0:02:59]}  Nbd5 {[%clk 0:02:47]} 12. Nxf5 {[%clk 0:02:56]}  exf5 {[%clk 0:02:46]} 13. Bd2 {[%clk 0:02:57]}  Bd6 {[%clk 0:02:39]} 14. Qf3 {[%clk 0:02:54]}  g6 {[%clk 0:02:38]} 15. g4 {[%clk 0:02:52]}  Nxc3 {[%clk 0:02:31]} 16. Bxc3 {[%clk 0:02:44]}  Ne4 {[%clk 0:02:32]} 17. gxf5 {[%clk 0:02:44]}  Qg5+ {[%clk 0:02:32]} 18. Kh1 {[%clk 0:02:44]}  Qh4 {[%clk 0:02:11]} 19. Qg4 {[%clk 0:02:02]}  Nxf2+ {[%clk 0:02:09]} 20. Rxf2 {[%clk 0:01:59]}  Qxf2 {[%clk 0:02:10]} 21. Qg2 {[%clk 0:01:57]}  Qxf5 {[%clk 0:02:10]} 22. e4 {[%clk 0:01:55]}  Qh5 {[%clk 0:02:07]} 23. Rf1 {[%clk 0:01:54]}  Rae8 {[%clk 0:02:05]} 24. Rf6 {[%clk 0:01:47]}  Be7 {[%clk 0:02:04]} 25. Rf4 {[%clk 0:01:46]}  Bg5 {[%clk 0:02:02]} 26. Rg4 {[%clk 0:01:46]}  Bf6 {[%clk 0:01:44]} 27. e5 {[%clk 0:01:44]}  Bg7 {[%clk 0:01:37]} 28. Rf4 {[%clk 0:01:37]}  Bh6 {[%clk 0:01:26]} 29. Rf3 {[%clk 0:01:26]}  Qg5 {[%clk 0:01:23]} 30. Qf2 {[%clk 0:01:25]}  Qe7 {[%clk 0:01:19]} 31. a5 {[%clk 0:01:16]}  Bg5 {[%clk 0:01:02]} 32. Qe1 {[%clk 0:01:01]}  Kh8 {[%clk 0:00:57]} 33. Bb4 {[%clk 0:01:00]}  Qd7 {[%clk 0:00:48]} 34. Bxf8 {[%clk 0:01:00]}  Rxf8 {[%clk 0:00:42]} 35. Qf2 {[%clk 0:00:58]}  f5 {[%clk 0:00:34]} 36. exf6 {[%clk 0:00:57]}  Qd6 {[%clk 0:00:29]} 37. f7 {[%clk 0:00:56]}  b6 {[%clk 0:00:21]} 38. a6 {[%clk 0:00:45]}  c5 {[%clk 0:00:21]} 39. dxc5 {[%clk 0:00:44]}  bxc5 {[%clk 0:00:21]} 40. Qg3 {[%clk 0:00:43]}  Qxg3 {[%clk 0:00:12]} 41. Rxg3 {[%clk 0:00:44]}  Bf6 {[%clk 0:00:13]} 42. Rd3 {[%clk 0:00:37]}  Bxb2 {[%clk 0:00:11]} 43. Rd7 {[%clk 0:00:37]}  Bd4 {[%clk 0:00:12]} 44. Bc4 {[%clk 0:00:36]}  Ra8 {[%clk 0:00:09]} 45. Rxa7 {[%clk 0:00:35]}  Rf8 {[%clk 0:00:08]} 46. Rb7 {[%clk 0:00:36]}  Be5 {[%clk 0:00:07]} 47. a7 {[%clk 0:00:35]}  Kg7 {[%clk 0:00:08]} 48. Kg2 {[%clk 0:00:34]}  Ra8 {[%clk 0:00:07]} 49. Kf3 {[%clk 0:00:35]}  Bc3 {[%clk 0:00:06]} 50. Ke4 {[%clk 0:00:30]}  Ba5 {[%clk 0:00:06]} 51. Bd5 {[%clk 0:00:30]}  Bb6 {[%clk 0:00:04]} 52. Rb8 {[%clk 0:00:27]} 1-0


[Site "https://www.chess.com"]

[Event "Titled Tuesday Blitz May 24 Early 2022"]
[White "Grischuk, Alexander"]
[Black "Antipov, Mikhail Al."]
[WhiteFideId "4126025"]
[BlackFideId "4107012"]
[WhiteElo "2762"]
[BlackElo "2512"]
[Result "1-0"]
[Round "08"]
[TimeControl "180+1"]
[Date "2022.05.24"]
[WhiteClock "0:00:26"]
[BlackClock "0:00:05"]

1. d4 {[%clk 0:03:00]}  Nf6 {[%clk 0:02:59]} 2. c4 {[%clk 0:03:01]}  g6 {[%clk 0:02:59]} 3. Nc3 {[%clk 0:03:01]}  d5 {[%clk 0:02:59]} 4. cxd5 {[%clk 0:03:01]}  Nxd5 {[%clk 0:02:59]} 5. e4 {[%clk 0:03:01]}  Nxc3 {[%clk 0:03:00]} 6. bxc3 {[%clk 0:03:02]}  Bg7 {[%clk 0:03:00]} 7. Nf3 {[%clk 0:03:03]}  c5 {[%clk 0:03:01]} 8. h3 {[%clk 0:03:03]}  Nc6 {[%clk 0:02:56]} 9. Be3 {[%clk 0:03:02]}  O-O {[%clk 0:02:56]} 10. Be2 {[%clk 0:03:01]}  cxd4 {[%clk 0:02:55]} 11. cxd4 {[%clk 0:03:01]}  Qa5+ {[%clk 0:02:56]} 12. Bd2 {[%clk 0:03:02]}  Qa3 {[%clk 0:02:56]} 13. d5 {[%clk 0:03:02]}  Ne5 {[%clk 0:02:55]} 14. O-O {[%clk 0:02:59]}  Bd7 {[%clk 0:02:55]} 15. Rb1 {[%clk 0:02:58]}  Ba4 {[%clk 0:02:53]} 16. Qe1 {[%clk 0:02:57]}  Nd3 {[%clk 0:02:49]} 17. Bxd3 {[%clk 0:02:57]}  Qxd3 {[%clk 0:02:50]} 18. Bg5 {[%clk 0:02:58]}  Rfe8 {[%clk 0:02:39]} 19. Rxb7 {[%clk 0:02:57]}  Bb5 {[%clk 0:02:34]} 20. Bxe7 {[%clk 0:02:57]}  Qxf1+ {[%clk 0:02:34]} 21. Qxf1 {[%clk 0:02:57]}  Bxf1 {[%clk 0:02:35]} 22. Kxf1 {[%clk 0:02:58]}  Bf8 {[%clk 0:02:31]} 23. Bxf8 {[%clk 0:02:55]}  Kxf8 {[%clk 0:02:32]} 24. Ng5 {[%clk 0:02:51]}  h6 {[%clk 0:02:02]} 25. Nxf7 {[%clk 0:02:50]}  Rab8 {[%clk 0:01:57]} 26. Rxb8 {[%clk 0:02:20]}  Rxb8 {[%clk 0:01:58]} 27. Ne5 {[%clk 0:02:21]}  Rb1+ {[%clk 0:01:50]} 28. Ke2 {[%clk 0:02:21]}  Rb2+ {[%clk 0:01:46]} 29. Ke3 {[%clk 0:02:21]}  Rxa2 {[%clk 0:01:22]} 30. Nxg6+ {[%clk 0:02:05]}  Kf7 {[%clk 0:01:08]} 31. Ne5+ {[%clk 0:02:00]}  Ke7 {[%clk 0:01:07]} 32. Nc6+ {[%clk 0:01:45]}  Kd6 {[%clk 0:00:34]} 33. e5+ {[%clk 0:01:45]}  Kc5 {[%clk 0:00:35]} 34. e6 {[%clk 0:01:39]}  Ra1 {[%clk 0:00:19]} 35. e7 {[%clk 0:01:11]}  Kd6 {[%clk 0:00:08]} 36. Ke2 {[%clk 0:00:35]}  Kd7 {[%clk 0:00:07]} 37. d6 {[%clk 0:00:35]}  Rb1 {[%clk 0:00:02]} 38. Ne5+ {[%clk 0:00:29]}  Ke8 {[%clk 0:00:02]} 39. Ng4 {[%clk 0:00:29]}  Rb8 {[%clk 0:00:01]} 40. Nf6+ {[%clk 0:00:29]}  Kf7 {[%clk 0:00:01]} 41. e8=Q+ {[%clk 0:00:27]}  Rxe8+ {[%clk 0:00:01]} 42. Nxe8 {[%clk 0:00:28]}  Kxe8 {[%clk 0:00:02]} 43. f4 {[%clk 0:00:26]}  Kd7 {[%clk 0:00:03]} 44. g4 {[%clk 0:00:26]}  Kxd6 {[%clk 0:00:03]} 45. Kd3 {[%clk 0:00:26]}  Kd5 {[%clk 0:00:02]} 46. f5 {[%clk 0:00:25]}  Ke5 {[%clk 0:00:02]} 47. Kc3 {[%clk 0:00:25]}  Kf6 {[%clk 0:00:02]} 48. Kb4 {[%clk 0:00:25]}  Kg5 {[%clk 0:00:03]} 49. Ka5 {[%clk 0:00:25]}  h5 {[%clk 0:00:03]} 50. Ka6 {[%clk 0:00:26]}  h4 {[%clk 0:00:04]} 51. Kxa7 {[%clk 0:00:25]}  Kf4 {[%clk 0:00:05]} 52. f6 {[%clk 0:00:26]} 1-0


[Site "https://www.chess.com"]

[Event "Titled Tuesday Blitz May 24 Early 2022"]
[White "Gulevich, Artem"]
[Black "Rostovtsev, Dmitry"]
[WhiteFideId "24119580"]
[BlackFideId "34278320"]
[WhiteElo "2218"]
[BlackElo "2274"]
[Result "0-1"]
[Round "08"]
[TimeControl "180+1"]
[Date "2022.05.24"]
[WhiteClock "0:00:02"]
[BlackClock "0:00:02"]

1. Nf3 {[%clk 0:03:00]}  Nf6 {[%clk 0:02:57]} 2. b3 {[%clk 0:02:57]}  g6 {[%clk 0:02:54]} 3. Bb2 {[%clk 0:02:58]}  Bg7 {[%clk 0:02:55]} 4. e3 {[%clk 0:02:58]}  O-O {[%clk 0:02:55]} 5. d4 {[%clk 0:02:59]}  d6 {[%clk 0:02:56]} 6. Be2 {[%clk 0:02:59]}  e5 {[%clk 0:02:54]} 7. dxe5 {[%clk 0:02:59]}  dxe5 {[%clk 0:02:55]} 8. Nxe5 {[%clk 0:02:53]}  Na6 {[%clk 0:02:20]} 9. O-O {[%clk 0:02:45]}  Qxd1 {[%clk 0:02:14]} 10. Rxd1 {[%clk 0:02:44]}  Nb4 {[%clk 0:02:14]} 11. Na3 {[%clk 0:02:41]}  Bf5 {[%clk 0:02:15]} 12. Nd3 {[%clk 0:02:35]}  a5 {[%clk 0:02:11]} 13. c3 {[%clk 0:02:20]}  Nc6 {[%clk 0:02:11]} 14. Nb5 {[%clk 0:02:11]}  Nd5 {[%clk 0:01:44]} 15. Bf3 {[%clk 0:02:08]}  Nb6 {[%clk 0:01:29]} 16. Nxc7 {[%clk 0:01:56]}  Rac8 {[%clk 0:01:28]} 17. Nd5 {[%clk 0:01:49]}  Nxd5 {[%clk 0:01:27]} 18. Bxd5 {[%clk 0:01:50]}  Bxd3 {[%clk 0:01:27]} 19. Bxc6 {[%clk 0:01:38]}  Bc2 {[%clk 0:01:23]} 20. Bxb7 {[%clk 0:00:55]}  Rc7 {[%clk 0:00:59]} 21. Rd2 {[%clk 0:00:51]}  Bxb3 {[%clk 0:00:51]} 22. axb3 {[%clk 0:00:49]}  Rxb7 {[%clk 0:00:51]} 23. Rxa5 {[%clk 0:00:46]}  Rxb3 {[%clk 0:00:50]} 24. g4 {[%clk 0:00:44]}  Rfb8 {[%clk 0:00:45]} 25. Ba1 {[%clk 0:00:35]}  Rb1+ {[%clk 0:00:40]} 26. Kg2 {[%clk 0:00:35]}  Rxa1 {[%clk 0:00:32]} 27. Rxa1 {[%clk 0:00:34]}  Bxc3 {[%clk 0:00:32]} 28. Rad1 {[%clk 0:00:34]}  Bxd2 {[%clk 0:00:32]} 29. Rxd2 {[%clk 0:00:34]}  Rb4 {[%clk 0:00:30]} 30. Kg3 {[%clk 0:00:34]}  Rb5 {[%clk 0:00:30]} 31. h4 {[%clk 0:00:34]}  h5 {[%clk 0:00:30]} 32. g5 {[%clk 0:00:33]}  Rb3 {[%clk 0:00:28]} 33. Rd8+ {[%clk 0:00:30]}  Kg7 {[%clk 0:00:28]} 34. Rd7 {[%clk 0:00:31]}  Kf8 {[%clk 0:00:26]} 35. Ra7 {[%clk 0:00:30]}  Ke8 {[%clk 0:00:24]} 36. Kf4 {[%clk 0:00:23]}  Kf8 {[%clk 0:00:24]} 37. f3 {[%clk 0:00:14]}  Rb2 {[%clk 0:00:23]} 38. e4 {[%clk 0:00:14]}  Kg7 {[%clk 0:00:23]} 39. e5 {[%clk 0:00:12]}  Rb6 {[%clk 0:00:21]} 40. Kg3 {[%clk 0:00:10]}  Kf8 {[%clk 0:00:19]} 41. f4 {[%clk 0:00:10]}  Rb3+ {[%clk 0:00:19]} 42. Kg2 {[%clk 0:00:10]}  Rb2+ {[%clk 0:00:19]} 43. Kg3 {[%clk 0:00:11]}  Rb3+ {[%clk 0:00:19]} 44. Kg2 {[%clk 0:00:11]}  Re3 {[%clk 0:00:17]} 45. Ra8+ {[%clk 0:00:10]}  Kg7 {[%clk 0:00:17]} 46. Ra6 {[%clk 0:00:10]}  Re4 {[%clk 0:00:08]} 47. Kf3 {[%clk 0:00:10]}  Re1 {[%clk 0:00:09]} 48. Kf2 {[%clk 0:00:09]}  Re4 {[%clk 0:00:09]} 49. Kf3 {[%clk 0:00:08]}  Re1 {[%clk 0:00:09]} 50. Kf2 {[%clk 0:00:08]}  Rh1 {[%clk 0:00:07]} 51. Kg3 {[%clk 0:00:09]}  Rg1+ {[%clk 0:00:06]} 52. Kf2 {[%clk 0:00:08]}  Rg4 {[%clk 0:00:06]} 53. Ra7 {[%clk 0:00:08]}  Rxf4+ {[%clk 0:00:05]} 54. Kg3 {[%clk 0:00:07]}  Re4 {[%clk 0:00:04]} 55. Re7 {[%clk 0:00:07]}  Kf8 {[%clk 0:00:04]} 56. Ra7 {[%clk 0:00:06]}  Rxe5 {[%clk 0:00:04]} 57. Ra3 {[%clk 0:00:07]}  Kg7 {[%clk 0:00:05]} 58. Rf3 {[%clk 0:00:07]}  Re4 {[%clk 0:00:05]} 59. Ra3 {[%clk 0:00:07]}  Rg4+ {[%clk 0:00:05]} 60. Kh3 {[%clk 0:00:07]}  Re4 {[%clk 0:00:05]} 61. Ra7 {[%clk 0:00:07]}  Kf8 {[%clk 0:00:05]} 62. Rb7 {[%clk 0:00:07]}  Re7 {[%clk 0:00:05]} 63. Rb8+ {[%clk 0:00:08]}  Kg7 {[%clk 0:00:06]} 64. Rb6 {[%clk 0:00:08]}  Rd7 {[%clk 0:00:06]} 65. Rb8 {[%clk 0:00:09]}  Rd4 {[%clk 0:00:07]} 66. Rc8 {[%clk 0:00:08]}  Re4 {[%clk 0:00:06]} 67. Rb8 {[%clk 0:00:07]}  Re3+ {[%clk 0:00:07]} 68. Kg2 {[%clk 0:00:07]}  Rd3 {[%clk 0:00:07]} 69. Kh2 {[%clk 0:00:07]}  Rd7 {[%clk 0:00:06]} 70. Kg3 {[%clk 0:00:07]}  f6 {[%clk 0:00:07]} 71. gxf6+ {[%clk 0:00:07]}  Kxf6 {[%clk 0:00:08]} 72. Rb6+ {[%clk 0:00:07]}  Kg7 {[%clk 0:00:08]} 73. Ra6 {[%clk 0:00:07]}  Rd3+ {[%clk 0:00:08]} 74. Kg2 {[%clk 0:00:07]}  Kf7 {[%clk 0:00:07]} 75. Rb6 {[%clk 0:00:07]}  Re3 {[%clk 0:00:07]} 76. Ra6 {[%clk 0:00:07]}  Re6 {[%clk 0:00:08]} 77. Ra7+ {[%clk 0:00:04]}  Kf6 {[%clk 0:00:08]} 78. Ra5 {[%clk 0:00:05]}  Re5 {[%clk 0:00:08]} 79. Ra6+ {[%clk 0:00:04]}  Kf5 {[%clk 0:00:08]} 80. Ra8 {[%clk 0:00:05]}  Re4 {[%clk 0:00:04]} 81. Ra5+ {[%clk 0:00:04]}  Re5 {[%clk 0:00:03]} 82. Ra6 {[%clk 0:00:03]}  Re6 {[%clk 0:00:03]} 83. Rxe6 {[%clk 0:00:02]}  Kxe6 {[%clk 0:00:03]} 84. Kf2 {[%clk 0:00:03]}  Kf6 {[%clk 0:00:02]} 85. Kg2 {[%clk 0:00:02]}  Ke5 {[%clk 0:00:02]} 0-1


[Site "https://www.chess.com"]

[Event "Titled Tuesday Blitz May 24 Early 2022"]
[White "Gurevich, Dmitry"]
[Black "Tanenbaum, Zachary"]
[WhiteFideId "2000407"]
[BlackFideId "2060850"]
[WhiteElo "2506"]
[BlackElo "2168"]
[Result "0-1"]
[Round "08"]
[TimeControl "180+1"]
[Date "2022.05.25"]
[WhiteClock "0:00:02"]
[BlackClock "0:00:03"]

1. d4 {[%clk 0:03:00]}  d5 {[%clk 0:02:59]} 2. c4 {[%clk 0:03:00]}  Bf5 {[%clk 0:02:58]} 3. cxd5 {[%clk 0:02:59]}  Bxb1 {[%clk 0:02:57]} 4. Qa4+ {[%clk 0:02:59]}  c6 {[%clk 0:02:58]} 5. Rxb1 {[%clk 0:02:58]}  Qxd5 {[%clk 0:02:58]} 6. e3 {[%clk 0:02:58]}  Nd7 {[%clk 0:02:58]} 7. Ne2 {[%clk 0:02:53]}  e6 {[%clk 0:02:49]} 8. Nc3 {[%clk 0:02:50]}  Qg5 {[%clk 0:02:40]} 9. Qb3 {[%clk 0:02:42]}  Nb6 {[%clk 0:02:24]} 10. a4 {[%clk 0:02:40]}  Nf6 {[%clk 0:02:22]} 11. g3 {[%clk 0:02:28]}  Be7 {[%clk 0:02:10]} 12. Bg2 {[%clk 0:02:27]}  O-O {[%clk 0:02:10]} 13. O-O {[%clk 0:02:27]}  e5 {[%clk 0:01:48]} 14. dxe5 {[%clk 0:01:23]}  Qxe5 {[%clk 0:01:48]} 15. Bd2 {[%clk 0:01:19]}  Rad8 {[%clk 0:01:45]} 16. Rfd1 {[%clk 0:01:18]}  Rd7 {[%clk 0:01:40]} 17. a5 {[%clk 0:01:10]}  Nbd5 {[%clk 0:01:30]} 18. Nxd5 {[%clk 0:01:07]}  Nxd5 {[%clk 0:01:31]} 19. e4 {[%clk 0:01:04]}  Nf6 {[%clk 0:01:25]} 20. Bc3 {[%clk 0:01:03]}  Qc7 {[%clk 0:01:16]} 21. Rxd7 {[%clk 0:00:59]}  Nxd7 {[%clk 0:01:13]} 22. Qc4 {[%clk 0:00:57]}  Bf6 {[%clk 0:00:53]} 23. Bxf6 {[%clk 0:00:54]}  Nxf6 {[%clk 0:00:54]} 24. b4 {[%clk 0:00:51]}  b6 {[%clk 0:00:35]} 25. axb6 {[%clk 0:00:46]}  axb6 {[%clk 0:00:35]} 26. h3 {[%clk 0:00:46]}  Rd8 {[%clk 0:00:32]} 27. Rc1 {[%clk 0:00:45]}  g6 {[%clk 0:00:30]} 28. Rc2 {[%clk 0:00:40]}  Rd1+ {[%clk 0:00:27]} 29. Kh2 {[%clk 0:00:39]}  Rb1 {[%clk 0:00:20]} 30. Qxc6 {[%clk 0:00:37]}  Qxc6 {[%clk 0:00:19]} 31. Rxc6 {[%clk 0:00:37]}  Nd7 {[%clk 0:00:20]} 32. Rd6 {[%clk 0:00:33]}  Ne5 {[%clk 0:00:18]} 33. Rxb6 {[%clk 0:00:33]}  Nd3 {[%clk 0:00:19]} 34. b5 {[%clk 0:00:29]}  Nxf2 {[%clk 0:00:18]} 35. Rb8+ {[%clk 0:00:29]}  Kg7 {[%clk 0:00:19]} 36. b6 {[%clk 0:00:29]}  Nd1 {[%clk 0:00:19]} 37. e5 {[%clk 0:00:25]}  Ne3 {[%clk 0:00:18]} 38. Be4 {[%clk 0:00:21]}  Rb2+ {[%clk 0:00:16]} 39. Kg1 {[%clk 0:00:21]}  Nc4 {[%clk 0:00:16]} 40. b7 {[%clk 0:00:18]}  Na5 {[%clk 0:00:08]} 41. Ra8 {[%clk 0:00:14]}  Nxb7 {[%clk 0:00:07]} 42. Rb8 {[%clk 0:00:14]}  Re2 {[%clk 0:00:07]} 43. Bxb7 {[%clk 0:00:12]}  Rb2 {[%clk 0:00:06]} 44. g4 {[%clk 0:00:09]}  Kh6 {[%clk 0:00:03]} 45. h4 {[%clk 0:00:08]}  Kg7 {[%clk 0:00:03]} 46. g5 {[%clk 0:00:07]}  h6 {[%clk 0:00:04]} 47. Kf1 {[%clk 0:00:07]}  h5 {[%clk 0:00:02]} 48. Ke1 {[%clk 0:00:06]}  Kh7 {[%clk 0:00:02]} 49. Kd1 {[%clk 0:00:06]}  Kg7 {[%clk 0:00:02]} 50. Kc1 {[%clk 0:00:06]}  Rb4 {[%clk 0:00:02]} 51. Kc2 {[%clk 0:00:06]}  Rxh4 {[%clk 0:00:02]} 52. Bd5 {[%clk 0:00:06]}  Rf4 {[%clk 0:00:02]} 53. Rb7 {[%clk 0:00:05]}  Rf5 {[%clk 0:00:02]} 54. Re7 {[%clk 0:00:02]}  h4 {[%clk 0:00:03]} 0-1


[Site "https://www.chess.com"]